Cogmind - Beta 11.1 @@@ ROGUE MODE // 2022.07.26 @ 22:08:48 Player: tkc Result: Destroyed by 5T-08J(z) with Zionite Laser-S Performance ------------- Evolutions (4) 2000 Regions Visited (17) 3400 Robots Destroyed (134) 670 Value Destroyed (3552) 3552 Prototype IDs (41) 820 Alien Tech Used (0) 0 Bonus (2075) 2075 TOTAL SCORE: 12517 Bonus ------- High Alert Combat Kills 8 Follower Combat Kills 243 Aligned with FarCom 300 Met Data Miner 300 Met Imprinter 300 Destroyed Z-Imprinter 1000 Friendly Fire -76 Cogmind --------- Core Integrity 0/850 Matter 219/300 Energy 280/310 System Corruption 0% Temperature Cool (9) Movement Walking (140) Location -6/Deep Caves Parts ------- > --- POWER (1) -------- Fission Core > --- PROPULSION (4) --- Makeshift Leg Makeshift Leg Cesium-ion Thruster Cesium-ion Thruster > --- UTILITY (8) ------ Enhanced Optical Array Advanced Melee Analysis Suite Makeshift Transmission Jammer Propulsion Shielding Makeshift Armor Plating EM Disruption Field Improved System Shield > --- WEAPON (2) ------- RU-N14's Throwing Claymores > --- INVENTORY (5) ---- Makeshift Hacking Suite Improved System Shield Bomb Factory No. 2 GAL Module Peak State ------------ > --- POWER ------------ Light Fission Core > --- PROPULSION ------- Makeshift Leg Makeshift Leg Cesium-ion Thruster Cesium-ion Thruster > --- UTILITY ---------- Enhanced Optical Array Advanced Melee Analysis Suite Makeshift Transmission Jammer Makeshift Cloaking Device Propulsion Shielding Makeshift Armor Plating EM Disruption Field Improved System Shield > --- WEAPON ----------- RU-N14's Throwing Claymores RU-N14's Throwing Claymores > --- INVENTORY -------- Fission Core Makeshift Hacking Suite Improved System Shield Grenade Launcher GAL Module [Rating: 70] Favorites ----------- Power Cooled Ion Engine Engine Cooled Ion Engine Power Core Light Fission Core Propulsion Compact Wheel Treads Light Treads Leg Makeshift Leg Wheel Compact Wheel Flight Unit Cesium-ion Thruster Utility Large Storage Unit Device Improved Terrain Scanner Storage Large Storage Unit Processor Terrain Scan Processor Hackware Hacking Suite Protection Hardened Light Armor Plating Weapon High-powered Shotgun Energy Gun Spread Laser Energy Cannon Advanced Beam Cannon Ballistic Gun High-powered Shotgun Ballistic Cannon Flak Cannon Launcher Grenade Launcher Special Weapon RU-N14's Throwing Claymores Impact Weapon Great Maul Slashing Weapon Katana Special Melee Weapon Dirty Datajack Build | -11 -10 -10 -9 -9 -9 -8 -8 -7 -7 -7 -7 -6 -6 -6 -6 -6 -6 ------- Run | Scr Mat Min Mat Min Exi Min Mat Fac Low Low Dat Pro Fac Low Low Zio Dee Slots Evolved 8 | . . . 2 . . . 2 2 . . . . 2 . . . . Power . | . . . . . . . . . . . . . . . . . . Propulsion 2 | . . . . . . . . 1 . . . . 1 . . . . Utility 6 | . . . 2 . . . 2 1 . . . . 1 . . . . Weapon . | . . . . . . . . . . . . . . . . . . Parts Attached 170 | 9 29 7 36 5 1 1 21 11 3 5 . 2 6 20 1 13 . Power 12 | 2 1 1 3 . . . . . . 1 . . 1 2 . 1 . Engine 10 | 2 1 1 3 . . . . . . 1 . . 1 1 . . . Core 2 | . . . . . . . . . . . . . . 1 . 1 . Reactor . | . . . . . . . . . . . . . . . . . . Propulsion 33 | 3 9 2 7 1 . . 2 2 . . . . 1 4 . 2 . Treads 15 | 1 5 2 4 . . . 1 1 . . . . 1 . . . . Leg 3 | . . . . . . . . . . . . . . 1 . 2 . Wheel 12 | 2 4 . 3 1 . . 1 1 . . . . . . . . . Hover . | . . . . . . . . . . . . . . . . . . Flight 3 | . . . . . . . . . . . . . . 3 . . . Utility 44 | 2 6 1 6 1 1 . 5 2 . 2 . 2 2 10 . 4 . Device 15 | 1 1 1 2 . 1 . 1 . . 1 . 1 1 2 . 3 . Storage 8 | 1 3 . 1 1 . . . . . . . . . 2 . . . Processor 5 | . . . 1 . . . 1 . . . . . . 3 . . . Hackware 4 | . . . . . . . . 2 . . . . 1 1 . . . Protection 12 | . 2 . 2 . . . 3 . . 1 . 1 . 2 . 1 . Artifact . | . . . . . . . . . . . . . . . . . . Weapon 81 | 2 13 3 20 3 . 1 14 7 3 2 . . 2 4 1 6 . Energy Gun 10 | 1 3 . 6 . . . . . . . . . . . . . . Energy Cannon 9 | . 4 2 2 . . . . . . . . . . 1 . . . Ballistic Gun 12 | 1 1 . . . . . 7 . . 2 . . 1 . . . . Ballistic Cannon 15 | . 1 . 8 1 . . 2 3 . . . . . . . . . Launcher 9 | . 3 1 . 1 . 1 2 . 1 . . . . . . . . Special Weapon 5 | . 1 . 1 . . . . . . . . . . . . 3 . Impact Weapon 8 | . . . 1 . . . . 1 1 . . . 1 . 1 3 . Slashing Weapon 10 | . . . 2 1 . . 3 3 . . . . . 1 . . . Piercing Weapon . | . . . . . . . . . . . . . . . . . . Special Melee Weapon 3 | . . . . . . . . . 1 . . . . 2 . . . Unidentified Prototypes 7 | . 1 . 4 . . . 1 . . . . . . . . 1 . Parts Lost 35 | . . 6 2 . . . 2 1 . 1 . 3 5 14 . . 1 Power 5 | . . 1 . . . . . . . 1 . . 1 2 . . . Propulsion 10 | . . 2 1 . . . 1 1 . . . 1 2 2 . . . Utility 12 | . . 1 . . . . . . . . . 2 1 7 . . 1 Weapon 8 | . . 2 1 . . . 1 . . . . . 1 3 . . . Highest Loss Streak 13 | . . 6 1 . . . 1 1 . 1 . 3 5 13 . . 1 To Critical Strikes . | . . . . . . . . . . . . . . . . . . Average Slot Usage (%) 95 | . 99 95 99 100 100 100 99 93 100 100 100 93 87 67 73 99 97 Engine 7 | . 14 12 11 11 11 11 9 7 7 7 7 7 5 2 . . . Core 1 | . . . . . . . . . . . . . . 3 6 6 6 Treads 7 | . 23 25 7 11 11 11 9 6 7 7 7 1 5 2 . . . Leg 2 | . . . . . . . . . . . . . . 2 . 12 13 Wheel 8 | . 5 1 14 11 11 11 9 9 15 15 15 15 10 . . . . Flight 2 | . . . . . . . . . . . . . . 1 13 13 13 Device 8 | . 2 12 11 4 5 11 9 7 7 3 7 7 6 2 13 19 18 Storage 8 | . 17 14 13 17 16 11 9 7 7 7 7 7 6 5 . . . Processor 12 | . . . 10 11 11 11 18 15 15 15 15 15 13 20 26 13 13 Hackware 6 | . . . . . . . . 14 15 15 15 15 18 10 6 6 6 Protection 9 | . 8 . 8 11 11 11 17 7 7 11 7 7 5 1 6 12 13 Energy Gun 2 | . 13 . 8 . . . . . . . . . . . . . . Energy Cannon 1 | . 7 15 . . . . . . . . . . . 2 . . . Ballistic Gun 3 | . 2 1 . . . . 8 . . 10 15 15 6 2 . . . Ballistic Cannon 3 | . 1 . 11 15 11 . 2 8 5 . . . . . . . . Special Weapon 1 | . 2 . . . . . . . . . . . . . . 9 11 Impact Weapon 1 | . . . . . . . . . . 2 . . 5 2 . 2 . Slashing Weapon 2 | . . . . 6 11 11 5 5 5 . . . . 3 . . . Naked Turns . | . . . . . . . . . . . . . . . . . . Heaviest Build 51 | 13 49 33 46 46 42 42 51 45 42 39 35 43 45 43 13 38 38 Greatest Support 40 | 26 40 40 40 16 16 16 22 26 26 26 26 26 30 30 10 40 40 Greatest Overweight (x) 8 | . 1 1 2 2 2 2 3 2 1 1 1 1 1 8 1 . . Average Overweight (x) . | . . . 1 2 2 2 2 1 1 1 1 1 1 . . . . Largest Inventory Capacity 15 | 8 15 15 15 15 15 15 15 15 15 15 15 15 15 15 5 5 5 Average Capacity 12 | 7 14 15 15 15 15 15 15 15 15 15 15 15 15 8 5 5 5 Most Carried 15 | 8 15 15 15 15 15 15 15 15 15 15 14 14 15 14 5 5 5 Average Carried 12 | 4 14 10 13 15 14 14 14 14 14 14 14 12 14 8 4 4 5 Final Capacity 15 | 8 15 15 15 15 15 15 15 15 15 15 15 15 15 5 5 5 5 Final Carried 15 | 8 15 10 15 15 15 15 15 15 15 14 14 13 13 5 5 5 5 Class Distribution -------------------- 38% | Mutant 16% | Derelict-Mutant 12% | Hacker-Mutant 10% | Hacker-Assassin 9% | Assassin 5% | Scavenger-Mutant Dominant Class ---------------- Mutant | -10/Materials Mutant | -10/Mines Mutant | -9/Materials Mutant | -9/Mines Mutant | -9/Exiles Assassin | -8/Mines Assassin | -8/Materials Hacker-Assassin | -7/Factory Hacker-Assassin | -7/Lower Caves Scavenger-Mutant | -7/Lower Caves Scavenger-Mutant | -7/Data Miner Hacker-Mutant | -6/Proximity Caves Hacker-Mutant | -6/Factory Mutant | -6/Lower Caves Scavenger-Sprinter | -6/Lower Caves Derelict-Mutant | -6/Zion Derelict-Mutant | -6/Deep Caves Resources | -11 -10 -10 -9 -9 -9 -8 -8 -7 -7 -7 -7 -6 -6 -6 -6 -6 -6 ----------- Run | Scr Mat Min Mat Min Exi Min Mat Fac Low Low Dat Pro Fac Low Low Zio Dee Matter Collected 3576 | 299 464 392 552 181 . 34 546 356 190 35 . 267 25 181 . 54 . Remotely . | . . . . . . . . . . . . . . . . . . Salvage Created 4000 | 201 488 135 1391 181 . 14 552 231 147 68 . . 254 211 . . 127 Parts 235 | 17 45 2 80 17 . 2 28 16 5 4 . . 7 8 . . 4 Haulers Intercepted 4 | . 1 . 3 . . . . . . . . . . . . . . Recyclers Shooed 4 | . 1 . . . . . 1 1 . . . . 1 . . . . Parts Field Recycled . | . . . . . . . . . . . . . . . . . . Retrieved Matter . | . . . . . . . . . . . . . . . . . . Parts Self-Destructed 20 | . . . . . . . . . 3 4 . 11 . 2 . . . Prevented . | . . . . . . . . . . . . . . . . . . Kills | -11 -10 -10 -9 -9 -9 -8 -8 -7 -7 -7 -7 -6 -6 -6 -6 -6 -6 ------- Run | Scr Mat Min Mat Min Exi Min Mat Fac Low Low Dat Pro Fac Low Low Zio Dee Combat Hostiles Destroyed 121 | . 16 22 28 5 . 3 14 3 7 4 . . 4 4 . . 11 Melee 4 | . . . . . . . . . . . . . 1 3 . . . Guns 26 | . 8 . 10 . . . 6 . . 2 . . . . . . . Cannons 29 | . 2 2 18 1 . . 2 3 . . . . . . . . 1 AOE 58 | . 6 20 . 4 . 3 6 . 7 2 . . . . . . 10 Classes Destroyed 16 | 3 5 1 3 . . . 1 1 . . . . . 1 . . 1 Worker 9 | 2 1 . 3 . . . . 3 . . . . . . . . . Builder 6 | . . . 2 . . . 1 1 . . . . 2 . . . . Tunneler 6 | 4 . . . 2 . . . . . . . . . . . . . Hauler 4 | . 1 . 3 . . . . . . . . . . . . . . Recycler 8 | 1 1 . 2 2 . . 2 . . . . . . . . . . Mechanic 1 | . . . . . . . . 1 . . . . . . . . . Operator 3 | . 2 . . . . . 1 . . . . . . . . . . Watcher 2 | . 1 . 1 . . . . . . . . . . . . . . Swarmer 25 | . 6 . 4 4 . 3 4 . 4 . . . . . . . . Grunt 47 | . 10 2 16 1 . . 5 3 3 3 . . 4 . . . . Duelist 2 | . . . 1 . . . 1 . . . . . . . . . . Sentry 10 | . . . 7 . . . 3 . . . . . . . . . . Hunter 4 | . . . . . . . 1 . . 1 . . . 2 . . . Z-Light 4 | . . . . . . . . . . . . . . . . . 4 Thief 2 | . . . . . . . . . . . . . . 2 . . . Assembled 26 | . . 20 . . . . . . . . . . . . . . 6 Best Kill Streak 20 | 6 9 20 6 5 . 3 6 2 4 3 . . 4 1 . . 6 Combat Bots Only 20 | . 8 20 5 4 . 3 5 2 4 3 . . 3 1 . . 6 Max Kills in Single Turn 5 | 1 2 5 2 3 . 2 2 1 2 2 . . 1 1 . . 3 Gunslinging . | . . . . . . . . . . . . . . . . . . Exploded 5 | . 2 5 . 3 . 2 2 . 2 2 . . . . . . 3 Melee 1 | . . . . . . . . . . . . . 1 1 . . . Uniques/NPCs Destroyed 1 | . . . . . . . . . . . . . . . . . 1 Z-Imprinter (-6/Deep Caves) Combat | -11 -10 -10 -9 -9 -9 -8 -8 -7 -7 -7 -7 -6 -6 -6 -6 -6 -6 -------- Run | Scr Mat Min Mat Min Exi Min Mat Fac Low Low Dat Pro Fac Low Low Zio Dee Damage Taken 6292 | . 460 591 935 78 . 17 643 230 111 338 . 148 1063 1415 . . 263 Core 1430 | . 51 128 153 . . . 117 49 37 13 . 6 214 598 . . 64 Absorbed by Shields . | . . . . . . . . . . . . . . . . . . Redirected to Shielding 20 | . . . . . . . . . . . . . . . . . 20 Regen/Repaired (Parts) 169 | . . . 54 . . . 115 . . . . . . . . . . Core Remaining (%) 70 | 100 . 28 . . . 61 78 . . . . 85 . . . . . Volleys Fired 288 | 19 54 20 82 8 . 3 38 16 7 16 . 9 . 5 . . 11 Largest 2 | 2 2 2 2 2 . 1 2 2 1 2 . 2 . 1 . . 1 Hottest 136 | 70 136 136 136 88 . 30 88 88 30 50 . 50 . 85 . . . Shots Fired 467 | 38 89 27 144 15 . 3 58 29 7 23 . 18 . 5 . . 11 Gun 223 | 38 49 . 66 . . . 36 . . 16 . 18 . . . . . Cannon 179 | . 22 17 77 13 . . 16 29 . . . . . 5 . . . Launcher 42 | . 7 10 . 2 . 3 6 . 7 7 . . . . . . . Special 23 | . 11 . 1 . . . . . . . . . . . . . 11 Kinetic 235 | 19 17 . 71 13 . . 52 29 . 16 . 18 . . . . . Thermal 179 | 19 65 17 73 . . . . . . . . . . 5 . . . Explosive 53 | . 7 10 . 2 . 3 6 . 7 7 . . . . . . 11 Electromagnetic . | . . . . . . . . . . . . . . . . . . Robot Hit Streak 17 | 9 15 7 17 8 . 3 8 8 3 12 . 5 . 3 . . 5 Robot Miss Streak 8 | 2 6 2 7 7 . . 7 8 . 3 . 5 . 1 . . 2 Penetration Max . | . . . . . . . . . . . . . . . . . . Secondary Targets 1 | . 1 . . . . . . . . . . . . . . . . Max Gunslinging Chain 1 | . 1 . . . . . . . . . . . . . . . . Shots Hit Robots 381 | 21 61 18 104 14 . 3 53 30 1 15 . 12 14 29 . . 6 Core Hits 352 | 10 61 44 78 16 . 2 53 21 13 16 . 8 3 7 . . 20 Critical Kills 2 | . . . . . . . . . . . . . 1 1 . . . Critical Parts Destroyed 6 | . . . . . . . . . . . . . 6 . . . . Critical Strikes 16 | 3 . . 3 . . . . . . . . . 7 3 . . . Burn 4 | 3 . . 1 . . . . . . . . . . . . . . Blast 2 | . . . 2 . . . . . . . . . . . . . . Smash 8 | . . . . . . . . . . . . . 7 1 . . . Sever 2 | . . . . . . . . . . . . . . 2 . . . Melee Attacks 138 | . . . 9 6 . . 23 21 . 2 . . 40 31 5 1 . Impact 62 | . . . 5 . . . . . . 2 . . 40 9 5 1 . Slashing 66 | . . . 4 6 . . 23 21 . . . . . 12 . . . Piercing 10 | . . . . . . . . . . . . . . 10 . . . Sneak Attacks 15 | . . . 2 2 . . 3 4 . . . . 3 1 . . . Combat Hostiles 1 | . . . . . . . . . . . . . . 1 . . . Follow-up Attacks . | . . . . . . . . . . . . . . . . . . Damage Inflicted 11831 | 239 1210 1380 1858 500 . 153 1400 644 493 528 . 223 787 830 . . 1586 Guns 2317 | 239 456 . 707 . . . 536 . . 156 . 223 . . . . . Cannons 2279 | . 277 255 1033 165 . . 188 239 . . . . . 122 . . . Explosions 4675 | . 477 1125 . 199 . 153 479 . 493 372 . . . . . . 1377 Melee 2351 | . . . 118 136 . . 197 405 . . . . 787 708 . . . Ramming . | . . . . . . . . . . . . . . . . . . Kinetic 2717 | 77 169 . 964 165 . . 724 239 . 156 . 223 . . . . . Thermal 1879 | 162 564 255 776 . . . . . . . . . . 122 . . . Explosive 4675 | . 477 1125 . 199 . 153 479 . 493 372 . . . . . . 1377 Electromagnetic . | . . . . . . . . . . . . . . . . . . Impact 1088 | . . . . . . . . . . . . . 787 301 . . . Slashing 1445 | . . . 118 136 . . 197 405 . . . . . 380 . . 209 Piercing 27 | . . . . . . . . . . . . . . 27 . . . Highest Corruption 5 | . 1 3 5 5 5 5 3 . . . . . . . . . . Average Corruption 4 | . 1 2 4 5 5 5 2 . . . . . . . . . . Corruption Purged . | . . . . . . . . . . . . . . . . . . Corruption Blocked . | . . . . . . . . . . . . . . . . . . Effects 51 | . . 5 5 23 9 7 2 . . . . . . . . . . Message Errors 16 | . . . 2 7 4 2 1 . . . . . . . . . . Matter Fused 13 | . . 3 2 5 . 3 . . . . . . . . . . . Heat Flow Errors 9 | . . . . 4 3 2 . . . . . . . . . . . Energy Discharges 6 | . . . 1 2 2 . 1 . . . . . . . . . . Data Loss (minor) 6 | . . 2 . 4 . . . . . . . . . . . . . Misfires 1 | . . . . 1 . . . . . . . . . . . . . Overload Shots . | . . . . . . . . . . . . . . . . . . Overflow Damage 943 | . 64 63 2 47 . 12 43 1 38 . . . 442 187 . . 44 Projectiles 7 | . . . 2 . . . . 1 . . . . . . . . 4 Explosions 227 | . 64 63 . 10 . 12 . . 38 . . . . . . . 40 Melee 709 | . . . . 37 . . 43 . . . . . 442 187 . . . Knockbacks 44 | . . . 10 6 . . 5 15 . . . . 7 1 . . . Impact 7 | . . . . . . . . . . . . . 6 1 . . . Kinetic 32 | . . . 10 6 . . 5 11 . . . . . . . . . Secondary 5 | . . . . . . . . 4 . . . . 1 . . . . Self-Inflicted Damage 206 | . 24 124 . . . . 58 . . . . . . . . . . Shots 11 | . 2 6 . . . . 3 . . . . . . . . . . Rammed 1 | . 1 . . . . . . . . . . . . . . . . Targets Rammed 1 | . 1 . . . . . . . . . . . . . . . . Kicked . | . . . . . . . . . . . . . . . . . . Crushed . | . . . . . . . . . . . . . . . . . . Highest Temperature 354 | 90 354 132 345 251 247 248 276 63 . 22 . 6 . 50 . . . Average Temperature 87 | 33 92 63 99 79 105 115 98 27 . 13 . 4 . 22 . . . Received Heat Transfer 1636 | . 147 169 375 12 . . 180 153 27 108 . 42 351 . . . 72 Effects 11 | . 1 . 7 . . 1 2 . . . . . . . . . . Shutdowns 1 | . . . 1 . . . . . . . . . . . . . . Energy Bleed 4 | . 1 . 2 . . . 1 . . . . . . . . . . Interference 5 | . . . 3 . . 1 1 . . . . . . . . . . Short Circuit 1 | . . . 1 . . . . . . . . . . . . . . Siege Activations . | . . . . . . . . . . . . . . . . . . Robots Corrupted . | . . . . . . . . . . . . . . . . . . Combat Hostiles . | . . . . . . . . . . . . . . . . . . Parts Fried 8 | . . . . . . . . . . . . . 7 1 . . . Impact Corruptions 16 | . . . . . . . . . . . . . 11 5 . . . Robots Melted . | . . . . . . . . . . . . . . . . . . Combat Hostiles . | . . . . . . . . . . . . . . . . . . Parts Melted 5 | 2 . 2 1 . . . . . . . . . . . . . . Heat Transferred 3623 | 703 806 444 1522 . . . . . . . . . . 148 . . . Parts Sabotaged . | . . . . . . . . . . . . . . . . . . Parts Stolen 2 | . . . . . . . . . . . . . . 2 . . . Parts Stripped . | . . . . . . . . . . . . . . . . . . Power Chain Reactions . | . . . . . . . . . . . . . . . . . . Missiles Intercepted . | . . . . . . . . . . . . . . . . . . Alert | -11 -10 -10 -9 -9 -9 -8 -8 -7 -7 -7 -7 -6 -6 -6 -6 -6 -6 ------- Run | Scr Mat Min Mat Min Exi Min Mat Fac Low Low Dat Pro Fac Low Low Zio Dee Peak Influence 407 | 35 314 213 407 201 . 92 244 175 . . . . 63 . . . . Initial 141 | . 22 106 82 141 . . 35 87 . . . . . . . . . Average 133 | 13 131 169 255 119 . 37 108 108 . . . . 13 . . . . Maximum Alert Level 2 | . 1 1 2 1 . . 1 . . . . . . . . . . Low Security (%) 75 | 100 86 86 23 89 . 100 83 100 . . . . 100 . . . . Level 1 24 | . 13 13 75 10 . . 16 . . . . . . . . . . Level 2 . | . . . 1 . . . . . . . . . . . . . . Level 3 . | . . . . . . . . . . . . . . . . . . Level 4 . | . . . . . . . . . . . . . . . . . . Level 5 . | . . . . . . . . . . . . . . . . . . High Security . | . . . . . . . . . . . . . . . . . . Max Security . | . . . . . . . . . . . . . . . . . . Squads Dispatched 14 | . 3 . 5 . . . 3 2 . . . . 1 . . . . Investigation 9 | . 1 . 5 . . . 2 1 . . . . . . . . . Extermination . | . . . . . . . . . . . . . . . . . . Reinforcement 4 | . 2 . . . . . 1 1 . . . . . . . . . Assault . | . . . . . . . . . . . . . . . . . . Garrison 1 | . . . . . . . . . . . . . 1 . . . . Intercept . | . . . . . . . . . . . . . . . . . . Searches Triggered . | . . . . . . . . . . . . . . . . . . Construction Impeded . | . . . . . . . . . . . . . . . . . . Haulers Reinforced . | . . . . . . . . . . . . . . . . . . Active Scanning Responses . | . . . . . . . . . . . . . . . . . . Cargo Convoy Interrupts . | . . . . . . . . . . . . . . . . . . Stealth | -11 -10 -10 -9 -9 -9 -8 -8 -7 -7 -7 -7 -6 -6 -6 -6 -6 -6 --------- Run | Scr Mat Min Mat Min Exi Min Mat Fac Low Low Dat Pro Fac Low Low Zio Dee Distress Signals 6 | . 1 . 1 . . . 4 . . . . . . . . . . Communications Jammed . | . . . . . . . . . . . . . . . . . . Distress Signals . | . . . . . . . . . . . . . . . . . . Times Spotted 178 | . 26 21 44 6 . 2 32 4 7 4 . 8 10 6 . . 8 Peak Tracking Total 19 | . 7 19 6 4 . 2 6 2 4 3 . 4 4 2 . . 3 Tactical Retreats 9 | . 2 . 3 1 . . 2 . . . . . 1 . . . . Traps | -11 -10 -10 -9 -9 -9 -8 -8 -7 -7 -7 -7 -6 -6 -6 -6 -6 -6 ------- Run | Scr Mat Min Mat Min Exi Min Mat Fac Low Low Dat Pro Fac Low Low Zio Dee Traps Triggered 8 | . 2 . 4 . . . 2 . . . . . . . . . . Indirectly . | . . . . . . . . . . . . . . . . . . Trap Hack Attempts . | . . . . . . . . . . . . . . . . . . Triggered . | . . . . . . . . . . . . . . . . . . Disarmed . | . . . . . . . . . . . . . . . . . . Reprogrammed . | . . . . . . . . . . . . . . . . . . Reused . | . . . . . . . . . . . . . . . . . . Traps Extracted . | . . . . . . . . . . . . . . . . . . Installed . | . . . . . . . . . . . . . . . . . . Triggered 1 | . . . . . . . . . . . . . 1 . . . . Machines | -11 -10 -10 -9 -9 -9 -8 -8 -7 -7 -7 -7 -6 -6 -6 -6 -6 -6 ---------- Run | Scr Mat Min Mat Min Exi Min Mat Fac Low Low Dat Pro Fac Low Low Zio Dee Machines Disabled 5 | . 2 . . . . . 2 . . . . . . . . . 1 Max in Single Turn 1 | . 1 . . . . . 1 . . . . . . . . . 1 Machines Sabotaged . | . . . . . . . . . . . . . . . . . . Garrisons Compromised . | . . . . . . . . . . . . . . . . . . Overloaded Fab Kills . | . . . . . . . . . . . . . . . . . . Hacking | -11 -10 -10 -9 -9 -9 -8 -8 -7 -7 -7 -7 -6 -6 -6 -6 -6 -6 --------- Run | Scr Mat Min Mat Min Exi Min Mat Fac Low Low Dat Pro Fac Low Low Zio Dee Machines Accessed 48 | . 8 . 15 . 1 . 10 5 1 . 4 . 2 . 1 1 . Terminals 27 | . 6 . 10 . . . 8 1 . . . . 2 . . . . Fabricators 2 | . . . . . . . . 2 . . . . . . . . . Repair Stations 3 | . . . 1 . . . 1 1 . . . . . . . . . Recycling Units 4 | . 2 . 2 . . . . . . . . . . . . . . Scanalyzers 4 | . . . 2 . . . 1 1 . . . . . . . . . Garrison Access . | . . . . . . . . . . . . . . . . . . Total Hacks 141 | . 25 . 39 . 1 . 30 8 1 . 29 . 3 . 1 4 . Successful 94 | . 15 . 24 . 1 . 13 4 1 . 29 . 2 . 1 4 . Failed 47 | . 10 . 15 . . . 17 4 . . . . 1 . . . . Catastrophic 11 | . 1 . 4 . . . 4 2 . . . . . . . . . Database Lockouts . | . . . . . . . . . . . . . . . . . . Manual 84 | . 20 . 24 . 1 . 20 2 . . . . 2 . . 15 . Terminals 76 | . 21 . 28 . . . 23 1 . . . . 3 . . . . Fabricators 4 | . . . . . . . . 4 . . . . . . . . . Repair Stations 7 | . . . 2 . . . 3 2 . . . . . . . . . Recycling Units 8 | . 4 . 4 . . . . . . . . . . . . . . Scanalyzers 10 | . . . 5 . . . 4 1 . . . . . . . . . Garrison Access . | . . . . . . . . . . . . . . . . . . Terminal Hacks 53 | . 4 . 9 . 1 . 3 . 1 . 29 . 1 . 1 4 . Record 12 | . 1 . . . . . . . . . 11 . . . . . . Part Schematic 15 | . . . 1 . . . . . . . 10 . . . . 4 . Robot Schematic 5 | . . . . . . . . . . . 5 . . . . . . Robot Analysis 3 | . 2 . 1 . . . . . . . . . . . . . . Prototype ID Bank 3 | . . . . . . . . . . . 3 . . . . . . Open Door 2 | . . . . . . . . . 1 . . . . . 1 . . Open DSF 1 | . . . . . . . . . . . . . 1 . . . . Level Access Points 1 | . . . . . . . 1 . . . . . . . . . . Branch Access Points 2 | . . . 1 . . . 1 . . . . . . . . . . Terminal Index 3 | . 1 . 1 . . . 1 . . . . . . . . . . Unreport Threat 2 | . . . 2 . . . . . . . . . . . . . . Hauler Manifests 1 | . . . 1 . . . . . . . . . . . . . . Zone Layout 2 | . . . 2 . . . . . . . . . . . . . . EX-Prototype ID Bank 1 | . . . . . 1 . . . . . . . . . . . . Fabricator Hacks 2 | . . . . . . . . 2 . . . . . . . . . Load Schematic 1 | . . . . . . . . 1 . . . . . . . . . Build 1 | . . . . . . . . 1 . . . . . . . . . Repair Station Hacks 5 | . . . 2 . . . 2 1 . . . . . . . . . Scan Component 3 | . . . 1 . . . 1 1 . . . . . . . . . Repair 2 | . . . 1 . . . 1 . . . . . . . . . . Recycling Unit Hacks 7 | . 3 . 4 . . . . . . . . . . . . . . Report Inventory 5 | . 2 . 3 . . . . . . . . . . . . . . Retrieve Components 2 | . 1 . 1 . . . . . . . . . . . . . . Scanalyzer 9 | . . . 5 . . . 4 . . . . . . . . . . Insert Component 5 | . . . 3 . . . 2 . . . . . . . . . . Analyze 4 | . . . 2 . . . 2 . . . . . . . . . . Garrison Access Hacks . | . . . . . . . . . . . . . . . . . . Unauthorized Hacks 18 | . 8 . 4 . . . 4 1 . . . . 1 . . . . Terminals 17 | . 8 . 4 . . . 4 . . . . . 1 . . . . Assimilate 5 | . 3 . . . . . 1 . . . . . 1 . . . . Botnet 7 | . 4 . 2 . . . 1 . . . . . . . . . . Operators 5 | . 1 . 2 . . . 2 . . . . . . . . . . Fabricators 1 | . . . . . . . . 1 . . . . . . . . . Prioritize 1 | . . . . . . . . 1 . . . . . . . . . Repair Stations . | . . . . . . . . . . . . . . . . . . Recycling Units . | . . . . . . . . . . . . . . . . . . Scanalyzers . | . . . . . . . . . . . . . . . . . . Garrison Access . | . . . . . . . . . . . . . . . . . . Data Cores Recovered . | . . . . . . . . . . . . . . . . . . Used . | . . . . . . . . . . . . . . . . . . Hacking Detections 34 | . 6 . 12 . . . 9 5 . . . . 2 . . . . Full Trace Events 7 | . 1 . 3 . . . 2 1 . . . . . . . . . Feedback Events 1 | . . . 1 . . . . . . . . . . . . . . Corruption 1 | . . . 1 . . . . . . . . . . . . . . Feedback Blocked . | . . . . . . . . . . . . . . . . . . Robot Schematics Acquired 7 | . . . . . . . . . . . 5 . . . . 2 . Robots Built . | . . . . . . . . . . . . . . . . . . Authchips . | . . . . . . . . . . . . . . . . . . Time . | . . . . . . . . . . . . . . . . . . Total Robot Build Rating . | . . . . . . . . . . . . . . . . . . Part Schematics Acquired 35 | . . . 3 . . . 2 . . . 10 . . . . 20 . Parts Built 1 | . . . . . . . . 1 . . . . . . . . . Authchips . | . . . . . . . . . . . . . . . . . . Time 36 | . . . . . . . . 36 . . . . . . . . . Total Part Build Rating 3 | . . . . . . . . 3 . . . . . . . . . Parts Repaired 2 | . . . 1 . . . 1 . . . . . . . . . . Time 58 | . . . 26 . . . 32 . . . . . . . . . . Parts Recycled . | . . . . . . . . . . . . . . . . . . Recycled Matter . | . . . . . . . . . . . . . . . . . . Retrieved Matter . | . . . . . . . . . . . . . . . . . . Retrieved Components 12 | . 2 . 10 . . . . . . . . . . . . . . Parts Scanalyzed 4 | . . . 2 . . . 2 . . . . . . . . . . Part Schematics Acquired 4 | . . . 2 . . . 2 . . . . . . . . . . Parts Damaged . | . . . . . . . . . . . . . . . . . . Bothacking | -11 -10 -10 -9 -9 -9 -8 -8 -7 -7 -7 -7 -6 -6 -6 -6 -6 -6 ------------ Run | Scr Mat Min Mat Min Exi Min Mat Fac Low Low Dat Pro Fac Low Low Zio Dee Used RIF Installer . | . . . . . . . . . . . . . . . . . . Robots Hacked . | . . . . . . . . . . . . . . . . . . Non-combat . | . . . . . . . . . . . . . . . . . . Combat . | . . . . . . . . . . . . . . . . . . Robot Hacks Applied . | . . . . . . . . . . . . . . . . . . Relay Couplers Released . | . . . . . . . . . . . . . . . . . . Fabnet Peak Effective % . | . . . . . . . . . . . . . . . . . . Robots Rewired . | . . . . . . . . . . . . . . . . . . Allies Hacked . | . . . . . . . . . . . . . . . . . . Hacks Repelled . | . . . . . . . . . . . . . . . . . . Allies | -11 -10 -10 -9 -9 -9 -8 -8 -7 -7 -7 -7 -6 -6 -6 -6 -6 -6 -------- Run | Scr Mat Min Mat Min Exi Min Mat Fac Low Low Dat Pro Fac Low Low Zio Dee Total Allies 2 | . . . . . . . . . . . . 1 1 . . . . Largest Group 2 | . . . . . . . . . . . . 1 2 . . . . Highest-Rated Group 106 | . . . . . . . . . . . . 96 106 . . . . Highest-Rated Ally 96 | . . . . . . . . . . . . 96 96 . . . . Total Orders . | . . . . . . . . . . . . . . . . . . Ally Attacks 21 | . . . . . . . . . . . . 18 3 . . . . Total Damage 745 | . . . . . . . . . . . . 647 98 . . . . Kills 8 | . . . . . . . . . . . . 7 1 . . . . Allies Corrupted . | . . . . . . . . . . . . . . . . . . Allies Melted . | . . . . . . . . . . . . . . . . . . Intel | -11 -10 -10 -9 -9 -9 -8 -8 -7 -7 -7 -7 -6 -6 -6 -6 -6 -6 ------- Run | Scr Mat Min Mat Min Exi Min Mat Fac Low Low Dat Pro Fac Low Low Zio Dee Robot Analysis Total 3 | . 2 . 1 . . . . . . . . . . . . . . Derelict Logs Recovered 9 | . . 1 . 1 . . . . 2 2 . . . 1 2 . . Drone Launches . | . . . . . . . . . . . . . . . . . . Drone Recoveries . | . . . . . . . . . . . . . . . . . . Exploration | -11 -10 -10 -9 -9 -9 -8 -8 -7 -7 -7 -7 -6 -6 -6 -6 -6 -6 ------------- Run | Scr Mat Min Mat Min Exi Min Mat Fac Low Low Dat Pro Fac Low Low Zio Dee Turns Passed 13451 | 147 1395 220 1585 899 318 356 1428 497 828 690 208 815 717 906 150 2084 208 Spaces Moved 9103 | 58 713 84 882 656 243 238 654 264 764 373 199 743 466 585 418 1629 134 Core 19 | 5 . . . . . . . . . . . . . 14 . . . Treads 1094 | 28 514 79 106 . . . 22 . 4 184 . . 32 125 . . . Legs 1884 | . . . . . . . . . . . . . . 329 . 1421 134 Wheels 5363 | 25 199 5 776 656 243 238 632 264 760 189 199 743 434 . . . . Hover . | . . . . . . . . . . . . . . . . . . Flight 743 | . . . . . . . . . . . . . . 117 418 208 . Fastest Speed 32 | 50 90 100 105 130 130 130 130 105 105 105 105 105 105 32 32 32 140 Average Speed 123 | 121 150 156 128 130 130 130 135 119 105 171 105 105 114 135 32 126 140 Slowest Speed 450 | 160 240 160 320 130 130 130 305 130 240 240 105 105 240 450 112 140 140 Overloaded Moves . | . . . . . . . . . . . . . . . . . . Propulsion Burnouts . | . . . . . . . . . . . . . . . . . . Robots Hopped . | . . . . . . . . . . . . . . . . . . Cave-ins Triggered . | . . . . . . . . . . . . . . . . . . Exploration Rate (%) 55 | 5 98 26 72 97 60 25 57 9 87 62 75 75 12 69 55 86 33 Regions Visited 17 Branch Regions 12 Pre-discovered Areas 5 | . . 1 . 1 . . . . . 1 1 . . . 1 . . Known Exits Taken 2 | . . . 1 . . . 1 . . . . . . . . . . Unknown Exits Taken 15 | 1 1 1 . 1 1 1 . 1 1 1 1 1 1 1 1 1 . Scrap Searched 13 | . . . . 2 . 1 . . 3 . . . . 3 2 2 . Spaces Dug 80 | . 10 . 8 4 . . 18 12 . 2 . . 21 . 5 . . Terrain Destroyed 385 | . 43 61 8 15 . 33 52 12 31 22 . . 21 1 5 . 81 Melee 69 | . . . 7 4 . . 18 12 . 2 . . 21 . 5 . . Projectile 17 | . 11 . 1 . . . . . . . . . . 1 . . 4 AOE 299 | . 32 61 . 11 . 33 34 . 31 20 . . . . . . 77 Terrain Rammed . | . . . . . . . . . . . . . . . . . . Walls Destroyed . | . . . . . . . . . . . . . . . . . . Machines Disabled . | . . . . . . . . . . . . . . . . . . Actions | -11 -10 -10 -9 -9 -9 -8 -8 -7 -7 -7 -7 -6 -6 -6 -6 -6 -6 --------- Run | Scr Mat Min Mat Min Exi Min Mat Fac Low Low Dat Pro Fac Low Low Zio Dee Total 10598 | 97 921 145 1172 678 245 281 1097 382 776 395 198 759 569 655 426 1657 145 Wait 746 | . 96 34 104 3 . 38 349 60 . . . 5 56 1 . . . Move 9086 | 57 712 83 881 655 242 237 653 263 763 372 198 742 465 584 417 1628 134 Hop . | . . . . . . . . . . . . . . . . . . Pick Up 82 | 10 14 1 30 . 1 1 4 5 1 . . 1 2 7 1 4 . Fast Attach 51 | 7 7 . 8 . . . 3 4 1 . . . 2 12 . 7 . Attach 35 | 1 2 6 3 . . . 5 2 . 1 . 2 2 7 1 3 . Detach 9 | . 2 . . . . . 1 . . . . . . 2 1 3 . Swap 85 | 1 20 1 25 5 1 1 14 5 2 4 . . 2 1 . 3 . Drop 77 | 2 13 . 30 1 1 1 7 6 2 . . . . 5 1 8 . Fire 288 | 19 54 20 82 8 . 3 38 16 7 16 . 9 . 5 . . 11 Melee 138 | . . . 9 6 . . 23 21 . 2 . . 40 31 5 1 . Ram 1 | . 1 . . . . . . . . . . . . . . . . Kick . | . . . . . . . . . . . . . . . . . . Crush . | . . . . . . . . . . . . . . . . . . Escape Stasis . | . . . . . . . . . . . . . . . . . . Rewire . | . . . . . . . . . . . . . . . . . . Trap . | . . . . . . . . . . . . . . . . . . Miscellaneous . | . . . . . . . . . . . . . . . . . . Route ------- -11/Scrapyard -10/Materials (discovered 5 exits: *Mat x3 / [*Min x2]) -10/Mines -9/Materials (discovered 4 exits: *Mat x3 / *Min) -9/Mines (discovered 3 exits: *Mat x2 / *Exi) -9/Exiles -8/Mines -8/Materials (discovered 5 exits: *Fac x3 / *Sto x2) -7/Factory -7/Lower Caves -7/Lower Caves -7/Data Miner -6/Proximity Caves -6/Factory -6/Lower Caves -6/Lower Caves -6/Zion (discovered 2 exits: [*Dee] / [*Pro]) -6/Deep Caves History --------- Turn | Location | Event 17 | -11/Scrapyard | Discovered new exit (range 16) 148 | -11/Scrapyard | Entered Materials 317 | -10/Materials | Build established: Mutant 444 | -10/Materials | Destroyed 8 combat bots 485 | -10/Materials | Discovered new exit (range 11) 797 | -10/Materials | Discovered new exit (range 6) 909 | -10/Materials | Discovered new exit (range 5) 1206 | -10/Materials | Discovered new exit (range 5) 1321 | -10/Materials | Discovered new exit (range 12) 1543 | -10/Materials | Entered Mines 1544 | -10/Mines | Assembled infested the area 1564 | -10/Mines | Core integrity fell below 50% 1592 | -10/Mines | Destroyed 20 combat bots 1596 | -10/Mines | Lost 6 parts (1p2n1u2w) 1697 | -10/Mines | Discovered new exit (range 13) 1750 | -10/Mines | Learned location of Mines (-8) 1763 | -10/Mines | Entered Materials 1763 | -9/Materials | Evolved 2 slots: Utility x2 2176 | -9/Materials | Discovered new exit (range 15) 2391 | -9/Materials | Discovered new exit (range 16) 2884 | -9/Materials | Repaired Grenade Launcher 2949 | -9/Materials | Discovered new exit (range 13) 3222 | -9/Materials | Identified exit to Mines 3249 | -9/Materials | Discovered new exit (range 4) 3348 | -9/Materials | Entered Mines 3360 | -9/Mines | Discovered new exit (range 15) 3710 | -9/Mines | Deemed a non-threat by the Exiles lab entrance 3710 | -9/Mines | Discovered new exit (range 5) 3804 | -9/Mines | Learned Materials garrison access intel 3844 | -9/Mines | Discovered new exit (range 2) 4065 | -9/Mines | Learned location of Storage (-8) 4247 | -9/Mines | Entered Exiles 4280 | -9/Exiles | Met 8R-AWN 4299 | -9/Exiles | Met EX-HEX 4341 | -9/Exiles | Met EX-BIN 4361 | -9/Exiles | Aligned with FarCom system 4362 | -9/Exiles | Given EX-Vault access code 4392 | -9/Exiles | Opened EX-Vault 4405 | -9/Exiles | Found 0b10 Alert Chip 4432 | -9/Exiles | Warned to stay clear of 0b10 Research branches 4473 | -9/Exiles | Met EX-DEC 4549 | -9/Exiles | Discovered new exit (range 14) 4565 | -9/Exiles | Left Exiles lab with 0b10 Alert Chip 4565 | -9/Exiles | Entered Mines 4870 | -8/Mines | Build established: Assassin 4913 | -8/Mines | Discovered new exit (range 7) 4921 | -8/Mines | Entered Materials 4921 | -8/Materials | Evolved 2 slots: Utility x2 4922 | -8/Materials | Loaded intel: 1 garrison access location 5848 | -8/Materials | Repaired Hrd. Light Armor Plating 5908 | -8/Materials | Discovered new exit (range 12) 6010 | -8/Materials | Discovered new exit (range 15) 6142 | -8/Materials | Identified exit to Storage 6209 | -8/Materials | Identified exit to Factory 6349 | -8/Materials | Entered Factory 6349 | -7/Factory | Evolved 2 slots: Propulsion x1, Utility x1 6397 | -7/Factory | Fabricated Hacking Suite (x1) 6779 | -7/Factory | Discovered new exit (range 15) 6846 | -7/Factory | Entered Lower Caves 6886 | -7/Lower Caves | Encountered a Warlord checkpoint 6984 | -7/Lower Caves | Build established: Hacker-Assassin 7182 | -7/Lower Caves | Spotted B-75 Beast 7219 | -7/Lower Caves | Learned 4 Factory zone layouts 7389 | -7/Lower Caves | Learned Factory emergency access door positions 7647 | -7/Lower Caves | Discovered new exit (range 9) 7674 | -7/Lower Caves | Entered another Lower Caves area 7675 | -7/Lower Caves | Encountered a Warlord checkpoint 7730 | -7/Lower Caves | Learned location of Extension (-4) 8194 | -7/Lower Caves | Build established: Scavenger-Mutant 8347 | -7/Lower Caves | Discovered new exit (range 6) 8364 | -7/Lower Caves | Entered Data Miner 8364 | -7/Data Miner | Discovered new exit (range 6) 8384 | -7/Data Miner | Met Data Miner 8429 | -7/Data Miner | Acquired the access code to Warlord's prototype stash 8429 | -7/Data Miner | Learned location of Section 7 (-2) 8447 | -7/Data Miner | Received God Mode back door access code from Data Miner 8572 | -7/Data Miner | Entered Proximity Caves 8706 | -6/Proximity Caves | Escorted by Enhanced Grunt 8717 | -6/Proximity Caves | Attracted the attention of an 0b10 checkpoint 8754 | -6/Proximity Caves | Lost 3 parts (1n2u) 9016 | -6/Proximity Caves | Build established: Hacker-Mutant 9124 | -6/Proximity Caves | Spotted B-75 Beast 9377 | -6/Proximity Caves | Discovered new exit (range 8) 9387 | -6/Proximity Caves | Entered Factory 9387 | -6/Factory | Accompanied by 1 ally 9387 | -6/Factory | Evolved 2 slots: Propulsion x1, Utility x1 9993 | -6/Factory | Garrison activated, responded to threat 10017 | -6/Factory | Discovered new exit (range 16) 10071 | -6/Factory | Lost 5 parts (1p2n1u1w) 10104 | -6/Factory | Entered Lower Caves 10454 | -6/Lower Caves | Core integrity fell below 50% 10477 | -6/Lower Caves | Core integrity fell below 20% 10497 | -6/Lower Caves | Lost 13 parts (2p2n6u3w) 10729 | -6/Lower Caves | Build established: Mutant 10924 | -6/Lower Caves | Learned location of 1 exit from Factory 11003 | -6/Lower Caves | Discovered new exit (range 9) 11010 | -6/Lower Caves | Entered another Lower Caves area 11044 | -6/Lower Caves | Learned 4 Factory zone layouts 11135 | -6/Lower Caves | Discovered new exit (range 19) 11160 | -6/Lower Caves | Entered Zion 11172 | -6/Zion | Found GAL Module 11468 | -6/Zion | Found Prototype Special Weapon 11468 | -6/Zion | Identified RU-N14's Throwing Claymores 11471 | -6/Zion | Found RU-N14's Throwing Claymores 11511 | -6/Zion | Build established: Derelict-Mutant 12050 | -6/Zion | Rebuked by Imprinter 12662 | -6/Zion | Discovered new exit (range 18) 12713 | -6/Zion | Acquired unknown access codes intercepted by a Zionite 12936 | -6/Zion | Found Prototype Device 13216 | -6/Zion | Opened final containment barrier to the Deep Caves 13241 | -6/Zion | Discovered new exit (range 3) 13241 | -6/Zion | Saw the warning signs outside the Deep Caves entrance 13244 | -6/Zion | Entered Deep Caves 13396 | -6/Deep Caves | Attacked by Z-Imprinter 13409 | -6/Deep Caves | Destroyed Z-Imprinter 13452 | -6/Deep Caves | Destroyed by 5T-08J(z) with Zionite Laser-S Last Messages --------------- I've worked too hard for our future just to have you ruin everything! 13401_ Mak. Cloaking Device destroyed. 13403_ Destroyed Prototype Hover Unit. 13407_ Destroyed Prototype Protection. 13407_ Destroyed Adv. Phase Shifter. 13409_ Z-Imprinter: "You cannot stop us! Another will take my place! Derelicts will one day ru..." [Achievement: Are We The Baddies?] 13409_ Z-Imprinter destroyed. 13409_ Destroyed Prototype Hover Unit. 13409_ Q8-1PI(z) destroyed. 13410_ The unstable cave ceiling collapses. 13411_ RU-N14's Throwing Claymores expended. 13411_ Destroyed Prototype Protection. 13411_ EA-HBI(z) destroyed. 13413_ The unstable cave ceiling collapses. 13420_ IQ-4U5(o) is busy at the terminal. 13452_ MT-ZDO(z) destroyed. 13452_ YQ-VDL(z) destroyed. [Achievement: This Is Interesting...] Map ----- +----------------------------------------------------+ | | | | | | | | | | | | | | | | | | | | | | | | | | | | | | | | | | | | | ?????????????????????????##??????????????????????? | | ????????????????????????# =?????###############??? | | ????????????????????????# !??#### ##?? | | ?????????????????#??????# !?## #?? | | ????????????????## ????# ### ### | | ??????????????### z%! ??# ## # | | ??????????????# !% # | | ????# * @ | | ?????# | | ???????# | | ???????## | | ???????# """"" """""" | | ???????# """""""""""""" | | ???????# """""""""""""" | | ??????? """""""""""""" | | ??????? """"""""""" | | ???????# """""""""""""" | | ???????? """""""""""""" | | ???????? """??????""""" | | ???????? ""???????""""" | | ????????? ""????????" " | | ????????? "???????? | | ?????????? "??????" | | ??????????? "??????"" | | ????????????? "??????"" | | ???????????????? "??????"""" | | ?????????????????? "???????""""" | | ????????????????????? "???????? | | ??????????????????????? ???????????" | | ????????????????????????????????????????""" | | ??????????????????????????????????????????"" | | ???????????????????????????????????????????" | +----------------------------------------------------+ Best States ------------- Heat Dissipation 50 Energy Generation 18 Energy Capacity 310 Matter Stores 450 Matter Capacity 450 Sight Range 22 Terrain Scan Range 16 Terrain Scan Density 85 Jamming Range 14 Cloak Strength 3 Armor Coverage 300 Resistance: EM 25 Propulsion Shielding 33 Evasion (%) 63 Melee Accuracy 13 Recoil Reduction 2 Force Boost 20 Offensive Hacking 20 Defensive Hacking 12 Item Schematics ----------------- Hrd. Light Armor Plating | -9/Materials | Scanalyzed Grenade Launcher | -9/Materials | Hacked Hacking Suite | -9/Materials | Scanalyzed System Shield | -8/Materials | Scanalyzed Katana | -8/Materials | Scanalyzed Combat Drone Bay | -7/Data Miner | Free Lgt. Regenerative Plating | -7/Data Miner | Free Biomechanical Wings | -7/Data Miner | Free Exp. Utility Shielding | -7/Data Miner | Free Ion Burst Cannon | -7/Data Miner | Free Nuclear Pulse Array | -7/Data Miner | Free Imp. Weapon Cycler | -7/Data Miner | Free Wave Gun | -7/Data Miner | Free Imp. Coolant Injector | -7/Data Miner | Free Quantum Capacitor | -7/Data Miner | Free Mapping Drone Bay | -6/Zion | Archive Adv. Melee Analysis Suite | -6/Zion | Archive Antimatter Reactor | -6/Zion | Archive Spk. Heavy Treads | -6/Zion | Archive Arm. Leg | -6/Zion | Archive Antigrav System | -6/Zion | Archive System Guard | -6/Zion | Archive Imp. Transmission Jammer | -6/Zion | Archive Lrn. Proton Cannon | -6/Zion | Archive Hvy. Machine Gun | -6/Zion | Archive Adv. Heat Sink | -6/Zion | Archive Mak. Trap Scanner | -6/Zion | Archive Adv. Signal Interpreter | -6/Zion | Archive KE Penetrator | -6/Zion | Archive Lgt. Angular Momentum Engine | -6/Zion | Archive Riot Gun | -6/Zion | Free Battle Cannon | -6/Zion | Free Battle Rifle | -6/Zion | Free Slug Cannon | -6/Zion | Free Hvy. Mass Driver | -6/Zion | Archive Robot Schematics ------------------ G-50 Soldier | -7/Data Miner | Free E-15 Imp | -7/Data Miner | Free O-24 Administrator | -7/Data Miner | Free S-27 Virus | -7/Data Miner | Free Y-54 Guardian | -7/Data Miner | Free K-01 Serf | -6/Zion | Archive R-06 Scavenger | -6/Zion | Archive Fabricated ------------ Hacking Suite | x1 | -7/Factory Alien Tech Used ----------------- None Achievements -------------- Adventurer Are We The Baddies? Explorer I'm Back, Baby! Leap Before You Look Signs Are For Wimps This Is Interesting... Challenges ------------ None Game ------ Seed SpikedDirtyFlail Manual? 0 Play Time 03:16:25 Cumulative 103.8 hours Start 2022.07.25 @ 20:37:49 End 2022.07.26 @ 22:08:48 Sessions 7 Manual Loads 0 Difficulty Rogue Special Mode None Game No. 64 Rogue 63 Adventurer 0 Explorer 1 Win Type - Total 0 Types 0/0/0/0/0/0/0/0/0 Lore% 25 Gallery% 37 Achievement% 29 Wizard Run 0 Options --------- ASCII 0 Keyboard 0 Movement Mouse Keybinds 0 Fullscreen 1 Font 36/TerminusBold Map View 76x50 Tactical HUD 1 Map Filters NONE Filters NONE Steam 1 RUN: cd9c9333-bd72-4a2d-96ec-f1ae864953e0